Cogmind - Beta 15 @@@ ROGUE MODE // 2025.08.06 @ 21:32:37 Player: shapeshifter Result: Self-destructed Performance ------------- Evolutions (4) 2000 Regions Visited (13) 2600 Robots Destroyed (120) 600 Value Destroyed (3600) 3600 Prototype IDs (36) 720 Alien Tech Used (0) 0 Bonus (1400) 1400 TOTAL SCORE: 10920 Bonus ------- Entered DSFs 500 Aligned with FarCom 300 Met Data Miner 300 Acquired ECA 300 Cogmind --------- Core Integrity 652/850 Matter 219/300 Energy 500/500 System Corruption 3% Temperature Cool (0) Movement Treading (237) Ox1 Location -5/Proximity Caves Parts ------- > --- POWER (1) -------- F-cell Engine > --- PROPULSION (5) --- Armored Treads Advanced Treads > --- UTILITY (5) ------ Improved Heat Sink Large Storage Unit Improved Targeting Computer Improved Medium Armor Plating > --- WEAPON (4) ------- Magnetic Acceleration Cannon Rocket Launcher > --- INVENTORY (15) --- Cold Fusion Reactor Advanced Treads Advanced Treads Medium Treads Medium Treads Scrap Suit Large Storage Unit Energy Well (350) Encrypted Comm Array Improved Power Shielding Hacking Suite Guided Plasma Cannon Peak State ------------ > --- POWER ------------ F-cell Engine > --- PROPULSION ------- Armored Treads Armored Treads Advanced Treads Advanced Treads Advanced Treads > --- UTILITY ---------- Large Storage Unit Improved Terrain Scanner Encrypted Comm Array Improved Targeting Computer Improved Medium Armor Plating > --- WEAPON ----------- Gauss Rifle Precision Assault Rifle Magnetic Acceleration Cannon Magnetic Acceleration Cannon > --- INVENTORY -------- Cold Fusion Reactor Advanced Treads Advanced Treads Medium Treads Medium Treads Scrap Suit Improved Heat Sink Large Storage Unit Energy Well Improved Power Shielding Improved Medium Armor Plating Shield Generator Guided Plasma Cannon Rocket Launcher [Rating: 60] Favorites ----------- Power Improved Ion Engine Engine Improved Ion Engine Power Core Light Nuclear Core Reactor Cold Fusion Reactor Propulsion Advanced Treads Treads Advanced Treads Wheel Compact Wheel Utility Small Storage Unit Device Improved Terrain Scanner Storage Small Storage Unit Processor Improved Targeting Computer Protection Improved Medium Armor Plating Weapon Precision Assault Rifle Energy Gun Small Laser Ballistic Gun Precision Assault Rifle Ballistic Cannon Magnetic Acceleration Cannon Launcher Rocket Launcher Build | -11 -10 -9 -9 -9 -8 -8 -7 -7 -6 -6 -6 -6 -5 ------- Run | Yrd Mat Mat Min Exi Min Mat Fac DSF Fac Low Low Dat Pro Slots Evolved 8 | . . 2 . . . 2 2 . 2 . . . . Power . | . . . . . . . . . . . . . . Propulsion 3 | . . . . . . 1 1 . 1 . . . . Utility 3 | . . . . . . 1 1 . 1 . . . . Weapon 2 | . . 2 . . . . . . . . . . . Parts Attached 65 | 7 4 12 1 1 3 15 . 12 8 1 . . 1 Power 8 | 1 1 1 . . . 2 . 1 2 . . . . Engine 6 | 1 1 1 . . . 2 . . 1 . . . . Core 1 | . . . . . . . . 1 . . . . . Reactor 1 | . . . . . . . . . 1 . . . . Propulsion 18 | 2 2 1 . 1 . 4 . 7 1 . . . . Treads 16 | . 2 1 . 1 . 4 . 7 1 . . . . Leg . | . . . . . . . . . . . . . . Wheel 2 | 2 . . . . . . . . . . . . . Hover . | . . . . . . . . . . . . . . Flight . | . . . . . . . . . . . . . . Utility 13 | 2 . 1 1 . . 3 . 2 3 1 . . . Device 5 | 1 . . . . . 1 . 1 1 1 . . . Storage 2 | 1 . . . . . 1 . . . . . . . Processor 2 | . . 1 . . . . . . 1 . . . . Hackware . | . . . . . . . . . . . . . . Protection 4 | . . . 1 . . 1 . 1 1 . . . . Artifact . | . . . . . . . . . . . . . . Weapon 26 | 2 1 9 . . 3 6 . 2 2 . . . 1 Energy Gun 3 | 1 . 2 . . . . . . . . . . . Energy Cannon . | . . . . . . . . . . . . . . Ballistic Gun 17 | 1 1 6 . . 3 5 . 1 . . . . . Ballistic Cannon 5 | . . 1 . . . 1 . 1 2 . . . . Launcher 1 | . . . . . . . . . . . . . 1 Special Weapon . | . . . . . . . . . . . . . . Impact Weapon . | . . . . . . . . . . . . . . Slashing Weapon . | . . . . . . . . . . . . . . Piercing Weapon . | . . . . . . . . . . . . . . Special Melee Weapon . | . . . . . . . . . . . . . . Unidentified Prototypes 4 | . . 1 . . . 1 . . 2 . . . . Parts Lost 19 | . 3 4 . . . 2 . 2 . . 1 . 7 Power 3 | . 1 1 . . . . . 1 . . . . . Propulsion 6 | . 2 . . . . . . 1 . . . . 3 Utility 3 | . . 1 . . . . . . . . 1 . 1 Weapon 7 | . . 2 . . . 2 . . . . . . 3 Highest Loss Streak 3 | . 3 2 . . . 1 . 2 . . 1 . 3 To Critical Strikes . | . . . . . . . . . . . . . . Average Backups 9 | 5 6 6 7 6 7 7 12 12 13 14 13 13 12 Power . | . . . . . . . . . . 1 1 1 1 Propulsion 1 | 2 2 1 1 . . . 1 3 4 4 4 4 4 Utility 4 | . 1 2 3 3 4 4 7 6 5 6 5 5 5 Weapon 2 | 1 2 2 2 3 3 2 4 3 2 2 2 2 1 Tool/Special . | . . . . . . . . . . . . . . Unused Backups 31 | . . 6 2 1 1 6 . 4 1 2 . . 8 Power 1 | . . 1 . . . . . . . . . . . Propulsion 6 | . . 2 . . . 1 . 1 . . . . 2 Utility 17 | . . . 1 1 . 5 . 3 1 1 . . 5 Weapon 7 | . . 3 1 . 1 . . . . 1 . . 1 Tool/Special . | . . . . . . . . . . . . . . Average Slot Usage (%) 96 | . 100 98 100 100 99 95 76 80 97 100 97 100 88 Engine 8 | . 14 10 11 11 11 9 7 1 3 6 6 6 6 Treads 26 | . 15 22 22 22 22 26 23 26 33 33 33 33 27 Device 6 | . 14 1 . . . 8 7 11 13 13 10 13 10 Storage 8 | . 14 11 11 11 11 9 7 7 6 6 6 6 6 Processor 3 | . . 9 5 . . . . . 5 6 6 6 6 Protection 6 | . . . 5 11 11 9 7 5 6 6 6 6 6 Ballistic Gun 28 | . 22 41 44 44 43 33 15 15 13 13 13 13 8 Ballistic Cannon 4 | . . . . . . . 7 7 10 13 13 13 12 Peak Build Rating 60 | 7 8 15 15 15 15 41 41 46 58 60 58 58 58 Average Rating 33 | 4 7 11 14 14 13 38 41 42 55 57 56 58 51 On Entrance 30 | . 7 8 15 14 15 13 41 41 46 57 57 58 58 Naked Turns . | . . . . . . . . . . . . . . Heaviest Build 66 | 13 13 20 23 23 23 51 51 54 66 66 66 65 65 Greatest Support 112 | 32 40 40 40 40 40 84 84 112 106 106 106 106 106 Greatest Overweight (x) 1 | . . . . . . . . . . . . . 1 Average Overweight (x) . | . . . . . . . . . . . . . . Largest Inventory Capacity 15 | 8 8 8 8 8 8 15 15 15 15 15 15 15 15 Average Capacity 11 | 7 8 8 8 8 8 10 15 15 15 15 15 15 15 Most Carried 15 | 8 8 8 8 8 8 15 15 15 15 15 15 14 14 Average Carried 10 | 5 6 7 7 7 7 9 15 14 14 14 14 14 13 Final Capacity 15 | 8 8 8 8 8 8 15 15 15 15 15 15 15 15 Final Carried 15 | 7 7 8 8 8 8 15 15 15 15 15 14 14 13 Class Distribution -------------------- 29% | Skirmisher 26% | Scavenger-Skirmisher 17% | Tank 11% | Gunner 11% | Scavenger-Tank 5% | Mutant Dominant Class ---------------- Mutant | -10/Materials Scavenger-Skirmisher | -9/Materials Scavenger-Tank | -9/Mines Scavenger-Tank | -9/Exiles Scavenger-Skirmisher | -8/Mines Skirmisher | -8/Materials Skirmisher | -7/Factory Scavenger-Skirmisher | -7/DSF Tank | -6/Factory Tank | -6/Lower Caves Gunner | -6/Lower Caves Gunner | -6/Data Miner Gunner | -5/Proximity Caves Resources | -11 -10 -9 -9 -9 -8 -8 -7 -7 -6 -6 -6 -6 -5 ----------- Run | Yrd Mat Mat Min Exi Min Mat Fac DSF Fac Low Low Dat Pro Matter Collected 3461 | 279 90 367 36 20 86 952 . 530 344 326 255 . 176 Remotely . | . . . . . . . . . . . . . . Salvage Created 4024 | 114 308 768 43 . 54 1273 . 466 333 289 216 . 160 Parts 245 | 11 24 47 4 . 9 77 . 16 16 18 8 . 15 Haulers Intercepted 1 | . . . . . . 1 . . . . . . . Recyclers Shooed 6 | 1 4 . . . . . . . 1 . . . . Parts Field Recycled . | . . . . . . . . . . . . . . Retrieved Matter . | . . . . . . . . . . . . . . Parts Self-Destructed 37 | . . . . . . . . . . 18 8 . 11 Prevented . | . . . . . . . . . . . . . . Kills | -11 -10 -9 -9 -9 -8 -8 -7 -7 -6 -6 -6 -6 -5 ------- Run | Yrd Mat Mat Min Exi Min Mat Fac DSF Fac Low Low Dat Pro Combat Hostiles Destroyed 100 | . 10 18 3 . 4 24 . 9 9 6 6 . 11 Guns 83 | . 10 18 3 . 4 24 . 8 6 2 3 . 5 Cannons 13 | . . . . . . . . 1 3 4 3 . 2 AOE 4 | . . . . . . . . . . . . . 4 Classes Destroyed 15 | 2 3 2 . . . 4 . 3 1 . . . . Worker 4 | . . 1 . . . 3 . . . . . . . Builder 1 | . . . . . . . . . 1 . . . . Tunneler 3 | 3 . . . . . . . . . . . . . Hauler 1 | . . . . . . 1 . . . . . . . Recycler 3 | 1 . 2 . . . . . . . . . . . Operator 1 | . . . . . . 1 . . . . . . . Watcher 7 | . 1 2 . . . 4 . . . . . . . Swarmer 47 | . 5 10 3 . 4 6 . 3 3 . 3 . 10 Grunt 33 | . 5 4 . . . 9 . 2 6 4 3 . . Brawler 1 | . . . . . . 1 . . . . . . . Sentry 10 | . . 4 . . . 6 . . . . . . . Specialist 2 | . . . . . . . . 2 . . . . . Hunter 4 | . . . . . . 2 . . . 2 . . . Programmer 2 | . . . . . . . . 1 . . . . 1 Heavy 1 | . . . . . . . . 1 . . . . . Best Kill Streak 9 | 4 5 9 3 . 4 9 . 5 5 4 6 . 5 Combat Bots Only 7 | . 5 7 3 . 4 5 . 5 5 4 6 . 5 Max Kills in Single Turn 2 | 1 2 2 2 . 1 2 . 1 2 1 1 . 2 Gunslinging 1 | . 1 1 1 . . 1 . . . . . . . Exploded 2 | . . . . . . . . . . . . . 2 Melee . | . . . . . . . . . . . . . . Uniques/NPCs Destroyed . | . . . . . . . . . . . . . . Combat | -11 -10 -9 -9 -9 -8 -8 -7 -7 -6 -6 -6 -6 -5 -------- Run | Yrd Mat Mat Min Exi Min Mat Fac DSF Fac Low Low Dat Pro Hostile Shots Fired 562 | . 56 88 7 . 8 95 . 91 42 32 53 . 90 Missed 172 | . 19 22 1 . 2 27 . 44 10 2 14 . 31 Hits 390 | . 37 66 6 . 6 68 . 47 32 30 39 . 59 Melee 1 | . . . . . . 1 . . . . . . . Projectile 389 | . 37 66 6 . 6 67 . 47 32 30 39 . 59 Critical Strikes 4 | . . 1 . . . . . 1 . . 2 . . Damage Taken 5186 | . 365 627 53 . 44 1112 . 795 415 344 480 . 951 Core 648 | . 100 71 10 . 21 145 . 103 43 12 50 . 93 Absorbed by Shields 424 | . . . . . . . . . 151 126 147 . . Core Remaining (%) 78 | 100 60 . . . 74 73 . 85 . . . . . Volleys Fired 250 | 9 39 50 4 . 4 56 . 25 17 11 12 . 23 Largest 4 | 2 2 4 4 . 4 4 . 3 4 4 4 . 4 Hottest 144 | 60 60 100 86 . 86 107 . 106 144 144 144 . 144 Shots Fired 789 | 18 69 183 16 . 16 203 . 75 68 44 48 . 49 Gun 651 | 18 69 183 16 . 16 203 . 50 34 22 24 . 16 Cannon 134 | . . . . . . . . 25 34 22 24 . 29 Launcher 4 | . . . . . . . . . . . . . 4 Special . | . . . . . . . . . . . . . . Kinetic 756 | 9 57 175 16 . 16 203 . 75 68 44 48 . 45 Thermal 29 | 9 12 8 . . . . . . . . . . . Explosive 4 | . . . . . . . . . . . . . 4 Electromagnetic . | . . . . . . . . . . . . . . Robot Hit Streak 13 | 3 8 11 2 . 4 12 . 11 8 13 6 . 7 Robot Miss Streak 8 | 3 3 8 2 . 3 5 . 4 4 2 3 . 6 Penetration Max 1 | . . . . . . . . . 1 1 1 . 1 Secondary Targets 14 | . 2 6 1 . 1 4 . . . . . . . Max Gunslinging Chain 1 | . 1 1 1 . 1 1 . . . . . . . Shots Hit Robots 458 | 9 42 96 7 . 8 138 . 42 37 29 25 . 25 Core Hits 218 | 6 24 44 3 . 5 58 . 13 19 17 12 . 17 Critical Kills 3 | . . 1 . . . 1 . . . 1 . . . Critical Parts Destroyed 2 | . . . . . . 1 . . . 1 . . . Critical Strikes 9 | . . 1 . . . 2 . 1 2 3 . . . Destroy 6 | . . 1 . . . 2 . 1 . 2 . . . Blast 3 | . . . . . . . . . 2 1 . . . Melee Attacks . | . . . . . . . . . . . . . . Impact . | . . . . . . . . . . . . . . Slashing . | . . . . . . . . . . . . . . Piercing . | . . . . . . . . . . . . . . Sneak Attacks . | . . . . . . . . . . . . . . Combat Hostiles . | . . . . . . . . . . . . . . Follow-up Attacks . | . . . . . . . . . . . . . . Damage Inflicted 8647 | 93 408 870 81 . 72 2536 . 1234 1129 567 596 . 1061 Guns 6137 | 93 408 870 81 . 72 2536 . 683 496 302 316 . 280 Cannons 2131 | . . . . . . . . 551 633 265 280 . 402 Explosions 379 | . . . . . . . . . . . . . 379 Melee . | . . . . . . . . . . . . . . Ramming . | . . . . . . . . . . . . . . Kinetic 8079 | 36 308 838 81 . 72 2536 . 1234 1129 567 596 . 682 Thermal 189 | 57 100 32 . . . . . . . . . . . Explosive 379 | . . . . . . . . . . . . . 379 Electromagnetic . | . . . . . . . . . . . . . . Impact . | . . . . . . . . . . . . . . Slashing . | . . . . . . . . . . . . . . Piercing . | . . . . . . . . . . . . . . Highest Corruption 3 | . . . . . . . . . . . . . 3 Average Corruption 1 | . . . . . . . . . . . . . 1 Corruption Purged . | . . . . . . . . . . . . . . Corruption Blocked . | . . . . . . . . . . . . . . Overload Shots . | . . . . . . . . . . . . . . Overflow Damage 52 | . . . . . . 12 . 35 1 . . . 4 Projectiles 40 | . . . . . . . . 35 1 . . . 4 Explosions 12 | . . . . . . 12 . . . . . . . Melee . | . . . . . . . . . . . . . . Knockbacks 14 | . . . . . . . . 6 3 3 1 . 1 Impact . | . . . . . . . . . . . . . . Kinetic 13 | . . . . . . . . 5 3 3 1 . 1 Secondary 1 | . . . . . . . . 1 . . . . . Self-Inflicted Damage 97 | . . . . . . 97 . . . . . . . Shots 1 | . . . . . . 1 . . . . . . . Rammed . | . . . . . . . . . . . . . . Targets Rammed . | . . . . . . . . . . . . . . Kicked . | . . . . . . . . . . . . . . Crushed . | . . . . . . . . . . . . . . Highest Temperature 418 | 40 67 188 124 . 118 418 . . 60 304 307 . 18 Average Temperature 82 | 23 19 69 59 . 65 94 . . 23 129 183 . 11 Received Heat Transfer 864 | . 123 99 . . . 351 . 27 114 78 72 . . Effects 2 | . . . . . . 2 . . . . . . . Interference 2 | . . . . . . 2 . . . . . . . Siege Activations . | . . . . . . . . . . . . . . Martial Activations . | . . . . . . . . . . . . . . Shielding Activations . | . . . . . . . . . . . . . . Robots Disrupted . | . . . . . . . . . . . . . . Combat Hostiles . | . . . . . . . . . . . . . . Robots Corrupted . | . . . . . . . . . . . . . . Combat Hostiles . | . . . . . . . . . . . . . . Parts Fried . | . . . . . . . . . . . . . . Impact Corruptions . | . . . . . . . . . . . . . . Robots Melted . | . . . . . . . . . . . . . . Combat Hostiles . | . . . . . . . . . . . . . . Parts Melted 1 | . . 1 . . . . . . . . . . . Heat Transferred 425 | 125 225 75 . . . . . . . . . . . Parts Sabotaged . | . . . . . . . . . . . . . . Parts Stolen . | . . . . . . . . . . . . . . Parts Stripped . | . . . . . . . . . . . . . . Power Chain Reactions . | . . . . . . . . . . . . . . Alert | -11 -10 -9 -9 -9 -8 -8 -7 -7 -6 -6 -6 -6 -5 ------- Run | Yrd Mat Mat Min Exi Min Mat Fac DSF Fac Low Low Dat Pro Maximum Alert Level 1 | . . 1 . . . 1 . 1 . . . . . Low Security (%) 85 | 100 100 82 100 . 100 71 100 75 100 . . . . Level 1 14 | . . 17 . . . 28 . 24 . . . . . Level 2 . | . . . . . . . . . . . . . . Level 3 . | . . . . . . . . . . . . . . Level 4 . | . . . . . . . . . . . . . . Level 5 . | . . . . . . . . . . . . . . High Security . | . . . . . . . . . . . . . . Max Security . | . . . . . . . . . . . . . . Sterilizations 1 | . . . . . . . . 1 . . . . . Peak Influence 343 | 10 170 224 118 . 80 343 150 275 180 . . . . Initial 150 | . 3 49 73 . . . 150 31 144 . . . . Average 108 | 2 114 161 74 . 9 134 97 169 110 . . . . Influence Increases 2764 | 20 247 507 85 . 90 759 5 264 242 140 155 . 250 Destroy 0b10 Robot/C 2000 | . 200 360 60 . 80 480 . 180 180 120 120 . 220 Destroy 0b10 Robot/NC 100 | 20 5 25 . . . 45 . . 5 . . . . Destroy Leader 426 | . 42 84 10 . 10 140 . 40 30 20 20 . 30 Successful Hack 39 | . . 23 . . . 11 5 . . . . . . Disable Machine 60 | . . . . . . 30 . 15 15 . . . . Destroy Structure 49 | . . . . . . 23 . 14 12 . . . . Lose Combat Pursuer 90 | . . 15 15 . . 30 . 15 . . 15 . . Influence Decreases 2654 | 15 135 434 227 48 90 428 291 34 345 312 155 . 140 Entered New Map 625 | . 2 68 117 48 . . 181 14 131 64 . . . Time Decay 1839 | 15 103 326 110 . 90 408 110 . 214 248 145 . 70 Lost Part 190 | . 30 40 . . . 20 . 20 . . 10 . 70 Squads Dispatched 9 | . 1 1 . . . 3 . 2 2 . . . . Investigation 5 | . 1 1 . . . 2 . . 1 . . . . Extermination . | . . . . . . . . . . . . . . Reinforcement 4 | . . . . . . 1 . 2 1 . . . . Assault . | . . . . . . . . . . . . . . Garrison . | . . . . . . . . . . . . . . Intercept . | . . . . . . . . . . . . . . Searches Triggered . | . . . . . . . . . . . . . . Construction Impeded . | . . . . . . . . . . . . . . Haulers Reinforced 1 | . . . . . . . . . 1 . . . . Active Scanning Responses . | . . . . . . . . . . . . . . Cargo Convoy Interrupts . | . . . . . . . . . . . . . . Stealth | -11 -10 -9 -9 -9 -8 -8 -7 -7 -6 -6 -6 -6 -5 --------- Run | Yrd Mat Mat Min Exi Min Mat Fac DSF Fac Low Low Dat Pro Distress Signals 6 | . 1 3 . . . 2 . . . . . . . Communications Jammed . | . . . . . . . . . . . . . . Distress Signals . | . . . . . . . . . . . . . . Times Spotted 122 | . 13 22 4 . 4 35 . 10 10 6 6 . 12 Peak Tracking Total 8 | . 6 5 2 . 4 8 . 4 4 3 5 . 5 Tactical Retreats 5 | . . 1 1 . . 1 . 1 . . 1 . . Traps | -11 -10 -9 -9 -9 -8 -8 -7 -7 -6 -6 -6 -6 -5 ------- Run | Yrd Mat Mat Min Exi Min Mat Fac DSF Fac Low Low Dat Pro Traps Triggered 2 | . . 1 . . . 1 . . . . . . . Indirectly . | . . . . . . . . . . . . . . Trap Hack Attempts . | . . . . . . . . . . . . . . Triggered . | . . . . . . . . . . . . . . Disarmed . | . . . . . . . . . . . . . . Reprogrammed . | . . . . . . . . . . . . . . Reused . | . . . . . . . . . . . . . . Traps Extracted . | . . . . . . . . . . . . . . Installed . | . . . . . . . . . . . . . . Triggered . | . . . . . . . . . . . . . . Machines | -11 -10 -9 -9 -9 -8 -8 -7 -7 -6 -6 -6 -6 -5 ---------- Run | Yrd Mat Mat Min Exi Min Mat Fac DSF Fac Low Low Dat Pro Machines Disabled 4 | . . . . . . 2 . 1 1 . . . . Max in Single Turn 1 | . . . . . . 1 . 1 1 . . . . Machines Repaired . | . . . . . . . . . . . . . . Machines Dismantled . | . . . . . . . . . . . . . . Machines Sabotaged . | . . . . . . . . . . . . . . Overloaded Fab Kills . | . . . . . . . . . . . . . . Hacking | -11 -10 -9 -9 -9 -8 -8 -7 -7 -6 -6 -6 -6 -5 --------- Run | Yrd Mat Mat Min Exi Min Mat Fac DSF Fac Low Low Dat Pro Machines Accessed 27 | . 2 6 . 5 . 7 1 . 2 . . 4 . Terminals 16 | . 1 6 . . . 7 1 . 1 . . . . Fabricators . | . . . . . . . . . . . . . . Repair Stations . | . . . . . . . . . . . . . . Recycling Units 2 | . 1 . . . . . . . 1 . . . . Scanalyzers . | . . . . . . . . . . . . . . Garrison Access . | . . . . . . . . . . . . . . Total Hacks 78 | . 6 17 . 6 . 15 1 . 3 . . 30 . Successful 49 | . 2 5 . 6 . 4 1 . 1 . . 30 . Failed 29 | . 4 12 . . . 11 . . 2 . . . . Catastrophic 5 | . 1 1 . . . 2 . . 1 . . . . Database Lockouts . | . . . . . . . . . . . . . . Manual 31 | . 3 14 . 1 . 13 . . . . . . . Terminals 38 | . 3 17 . . . 15 1 . 2 . . . . Fabricators . | . . . . . . . . . . . . . . Repair Stations . | . . . . . . . . . . . . . . Recycling Units 4 | . 3 . . . . . . . 1 . . . . Scanalyzers . | . . . . . . . . . . . . . . Garrison Access . | . . . . . . . . . . . . . . Terminal Hacks 42 | . . 3 . 6 . 2 1 . . . . 30 . Record 16 | . . . . 5 . . . . . . . 11 . Part Schematic 11 | . . . . . . . . . . . . 11 . Robot Schematic 5 | . . . . . . . . . . . . 5 . Prototype ID Bank 3 | . . . . . . . . . . . . 3 . Open DSF 1 | . . . . . . . 1 . . . . . . Branch Access Points 1 | . . 1 . . . . . . . . . . . Hauler Manifests 1 | . . . . . . 1 . . . . . . . Registered Components 2 | . . 1 . . . 1 . . . . . . . Zone Layout 1 | . . 1 . . . . . . . . . . . Proto ID Catalog 1 | . . . . 1 . . . . . . . . . Fabricator Hacks . | . . . . . . . . . . . . . . Repair Station Hacks . | . . . . . . . . . . . . . . Recycling Unit Hacks 2 | . 1 . . . . . . . 1 . . . . Report Inventory 2 | . 1 . . . . . . . 1 . . . . Scanalyzer . | . . . . . . . . . . . . . . Garrison Access Hacks . | . . . . . . . . . . . . . . Unauthorized Hacks 5 | . 1 2 . . . 2 . . . . . . . Terminals 5 | . 1 2 . . . 2 . . . . . . . Botnet 5 | . 1 2 . . . 2 . . . . . . . Fabricators . | . . . . . . . . . . . . . . Repair Stations . | . . . . . . . . . . . . . . Recycling Units . | . . . . . . . . . . . . . . Scanalyzers . | . . . . . . . . . . . . . . Garrison Access . | . . . . . . . . . . . . . . Data Cores Recovered 1 | . . . . . . 1 . . . . . . . Used . | . . . . . . . . . . . . . . Hacking Detections 14 | . 2 5 . . . 6 . . 1 . . . . Full Trace Events 4 | . 1 . . . . 2 . . 1 . . . . Feedback Events . | . . . . . . . . . . . . . . Feedback Blocked . | . . . . . . . . . . . . . . Robot Schematics Acquired 5 | . . . . . . . . . . . . 5 . Robots Built . | . . . . . . . . . . . . . . Authchips . | . . . . . . . . . . . . . . Time . | . . . . . . . . . . . . . . Total Robot Build Rating . | . . . . . . . . . . . . . . Part Schematics Acquired 11 | . . . . . . . . . . . . 11 . Parts Built . | . . . . . . . . . . . . . . Authchips . | . . . . . . . . . . . . . . Time . | . . . . . . . . . . . . . . Total Part Build Rating . | . . . . . . . . . . . . . . Parts Repaired . | . . . . . . . . . . . . . . Time . | . . . . . . . . . . . . . . Parts Recycled . | . . . . . . . . . . . . . . Recycled Matter . | . . . . . . . . . . . . . . Retrieved Matter . | . . . . . . . . . . . . . . Retrieved Components . | . . . . . . . . . . . . . . Parts Scanalyzed . | . . . . . . . . . . . . . . Part Schematics Acquired . | . . . . . . . . . . . . . . Parts Damaged . | . . . . . . . . . . . . . . Bothacking | -11 -10 -9 -9 -9 -8 -8 -7 -7 -6 -6 -6 -6 -5 ------------ Run | Yrd Mat Mat Min Exi Min Mat Fac DSF Fac Low Low Dat Pro Used RIF Installer . | . . . . . . . . . . . . . . Robots Hacked . | . . . . . . . . . . . . . . Non-combat . | . . . . . . . . . . . . . . Combat . | . . . . . . . . . . . . . . Robot Hacks Applied . | . . . . . . . . . . . . . . Relay Couplers Released . | . . . . . . . . . . . . . . Fabnet Peak Effective % . | . . . . . . . . . . . . . . Robots Rewired . | . . . . . . . . . . . . . . Allies Hacked . | . . . . . . . . . . . . . . Hacks Repelled . | . . . . . . . . . . . . . . Allies | -11 -10 -9 -9 -9 -8 -8 -7 -7 -6 -6 -6 -6 -5 -------- Run | Yrd Mat Mat Min Exi Min Mat Fac DSF Fac Low Low Dat Pro Total Allies . | . . . . . . . . . . . . . . Largest Group . | . . . . . . . . . . . . . . Highest-Rated Group . | . . . . . . . . . . . . . . Highest-Rated Ally . | . . . . . . . . . . . . . . Initial Warlord ECA Mod 44 | . . . . . . . . . 9 9 9 9 8 Total Orders . | . . . . . . . . . . . . . . Ally Attacks . | . . . . . . . . . . . . . . Total Damage . | . . . . . . . . . . . . . . Kills . | . . . . . . . . . . . . . . Allies Corrupted . | . . . . . . . . . . . . . . Allies Melted . | . . . . . . . . . . . . . . Intel | -11 -10 -9 -9 -9 -8 -8 -7 -7 -6 -6 -6 -6 -5 ------- Run | Yrd Mat Mat Min Exi Min Mat Fac DSF Fac Low Low Dat Pro Active Infowar (turns) 4356 | 6 228 717 111 . . 1398 229 305 180 614 330 120 118 Optics 754 | . . 643 111 . . . . . . . . . . Terrain 3294 | . . . . . . 1398 229 305 180 614 330 120 118 Seismic 308 | 6 228 74 . . . . . . . . . . . Robot Analysis Total . | . . . . . . . . . . . . . . Derelict Logs Recovered 1 | . . . . . . . . . . . 1 . . Drone Launches . | . . . . . . . . . . . . . . Drone Recoveries . | . . . . . . . . . . . . . . Exploration | -11 -10 -9 -9 -9 -8 -8 -7 -7 -6 -6 -6 -6 -5 ------------- Run | Yrd Mat Mat Min Exi Min Mat Fac DSF Fac Low Low Dat Pro Turns Passed 6722 | 97 228 724 223 622 775 1527 229 305 447 711 511 120 203 Spaces Moved 3619 | 58 90 341 127 386 474 764 144 111 238 430 301 78 77 Core 14 | 14 . . . . . . . . . . . . . Treads 3529 | . 58 341 127 386 474 764 144 111 238 430 301 78 77 Legs . | . . . . . . . . . . . . . . Wheels 76 | 44 32 . . . . . . . . . . . . Hover . | . . . . . . . . . . . . . . Flight . | . . . . . . . . . . . . . . Fastest Speed 50 | 50 100 160 160 160 160 160 160 156 155 155 155 155 155 Average Speed 157 | 87 138 160 160 160 160 160 160 158 155 155 155 155 177 Slowest Speed 241 | 100 160 160 160 160 160 160 160 161 155 155 155 155 241 Overloaded Moves . | . . . . . . . . . . . . . . Propulsion Burnouts . | . . . . . . . . . . . . . . Robots Hopped . | . . . . . . . . . . . . . . Potential Cave-ins . | . . . . . . . . . . . . . . Cave-ins Triggered . | . . . . . . . . . . . . . . Exploration Rate (%) 41 | 3 30 35 31 71 75 61 4 63 8 64 46 68 18 Regions Visited 13 Branch Regions 7 Pre-discovered Areas 3 | . . . . 1 . . . . . 1 . 1 . Known Exits Taken 2 | . . 1 . . . . 1 . . . . . . Unknown Exits Taken 10 | 1 1 . 1 1 1 1 . . 1 1 1 1 . Scrap Searched 6 | . . . . . 1 . . . . 3 1 . 1 Spaces Dug . | . . . . . . . . . . . . . . Terrain Destroyed 111 | . . . . . . 22 . 19 9 11 12 . 38 Melee . | . . . . . . . . . . . . . . Projectile 63 | . . . . . . . . 19 9 11 12 . 12 AOE 48 | . . . . . . 22 . . . . . . 26 Terrain Rammed . | . . . . . . . . . . . . . . Walls Destroyed . | . . . . . . . . . . . . . . Machines Disabled . | . . . . . . . . . . . . . . Actions | -11 -10 -9 -9 -9 -8 -8 -7 -7 -6 -6 -6 -6 -5 --------- Run | Yrd Mat Mat Min Exi Min Mat Fac DSF Fac Low Low Dat Pro Total 4161 | 87 137 436 141 392 485 951 143 175 274 447 315 77 101 Wait 88 | . . . 5 . . 74 . 8 . . 1 . . Move 3606 | 57 89 340 126 385 473 763 143 110 237 429 300 77 77 Hop . | . . . . . . . . . . . . . . Pick Up 79 | 14 4 19 2 3 1 18 . 10 6 2 . . . Fast Attach 14 | . . . . . 1 5 . 5 3 . . . . Attach 33 | 7 3 10 1 . . 4 . 3 3 . 1 . 1 Detach 1 | . . . . . . 1 . . . . . . . Swap 27 | . 1 5 . 1 2 8 . 4 2 3 1 . . Drop 63 | . 1 12 3 3 4 22 . 10 6 2 . . . Fire 250 | 9 39 50 4 . 4 56 . 25 17 11 12 . 23 Melee . | . . . . . . . . . . . . . . Ram . | . . . . . . . . . . . . . . Kick . | . . . . . . . . . . . . . . Crush . | . . . . . . . . . . . . . . Escape Stasis . | . . . . . . . . . . . . . . Rewire . | . . . . . . . . . . . . . . Trap . | . . . . . . . . . . . . . . Miscellaneous . | . . . . . . . . . . . . . . Route ------- -11/Scrapyard -10/Materials -9/Materials (discovered 2 exits: *Min x2) -9/Mines (discovered 2 exits: *Mat / *Exi) -9/Exiles -8/Mines -8/Materials -7/Factory -7/DSF -6/Factory (discovered 2 exits: [*Fac] / [*Low]) -6/Lower Caves -6/Lower Caves -6/Data Miner -5/Proximity Caves History --------- Turn | Location | Event 3 | -11/Scrapyard | Discovered new exit (range 14) 98 | -11/Scrapyard | Entered Materials 229 | -10/Materials | Lost 3 parts (1p2n) 289 | -10/Materials | Discovered new exit (range 16) 314 | -10/Materials | Build established: Mutant 326 | -10/Materials | Entered another Materials area 326 | -9/Materials | Evolved 2 slots: Weapon x2 362 | -9/Materials | Identified exit to Mines 438 | -9/Materials | Destroyed 7 combat bots 872 | -9/Materials | Build established: Scavenger-Skirmisher 1050 | -9/Materials | Entered Mines 1065 | -9/Mines | Received a Rocket Launcher from a helpful Derelict 1124 | -9/Mines | Discovered new exit (range 14) 1158 | -9/Mines | Found a Scrap Suit stashed away for nefarious purposes 1163 | -9/Mines | Found Scrap Suit 1267 | -9/Mines | Deemed a non-threat by the Exiles lab entrance 1267 | -9/Mines | Discovered new exit (range 5) 1273 | -9/Mines | Entered Exiles 1315 | -9/Exiles | Met 8R-AWN 1341 | -9/Exiles | Met EX-HEX 1424 | -9/Exiles | Met EX-DEC 1448 | -9/Exiles | Build established: Scavenger-Tank 1465 | -9/Exiles | Learned location of Zion (-7) 1574 | -9/Exiles | Met EX-BIN 1596 | -9/Exiles | Aligned with FarCom system 1598 | -9/Exiles | Given EX-Vault access code 1678 | -9/Exiles | Opened EX-Vault 1690 | -9/Exiles | Found Gui. Plasma Cannon 1734 | -9/Exiles | Warned to stay clear of 0b10 Research branches 1878 | -9/Exiles | Discovered new exit (range 14) 1895 | -9/Exiles | Left Exiles lab with Gui. Plasma Cannon 1895 | -9/Exiles | Entered Mines 2191 | -8/Mines | Build established: Scavenger-Skirmisher 2653 | -8/Mines | Discovered new exit (range 11) 2670 | -8/Mines | Entered Materials 2670 | -8/Materials | Evolved 2 slots: Propulsion x1, Utility x1 2971 | -8/Materials | Build established: Skirmisher 3179 | -8/Materials | Discovered new exit (range 16) 4197 | -8/Materials | Entered Factory 4197 | -7/Factory | Evolved 2 slots: Propulsion x1, Utility x1 4425 | -7/Factory | Identified exit to DSF 4426 | -7/Factory | Entered DSF 4448 | -7/DSF | Additional patrols routed to DSF 4500 | -7/DSF | Discovered new exit (range 16) 4666 | -7/DSF | Sterilization system engaged 4686 | -7/DSF | Ambient heat levels rising (+10) 4701 | -7/DSF | Ambient heat levels rising (+10) 4716 | -7/DSF | Ambient heat levels rising (+10) 4731 | -7/DSF | Ambient heat levels rising (+10) 4731 | -7/DSF | Entered Factory 4731 | -6/Factory | Evolved 2 slots: Propulsion x1, Utility x1 4810 | -6/Factory | Build established: Scavenger-Skirmisher 5114 | -6/Factory | Discovered new exit (range 15) 5143 | -6/Factory | Discovered new exit (range 15) 5168 | -6/Factory | Build established: Tank 5178 | -6/Factory | Entered Lower Caves 5272 | -6/Lower Caves | Met a Warlord Commander 5273 | -6/Lower Caves | Learned location of Warlord (-5) 5274 | -6/Lower Caves | Warlord Commander delivered Encrypted Comm Array 5277 | -6/Lower Caves | Found Encrypted Comm Array 5305 | -6/Lower Caves | Encountered a Warlord checkpoint 5865 | -6/Lower Caves | Discovered new exit (range 11) 5889 | -6/Lower Caves | Entered another Lower Caves area 6188 | -6/Lower Caves | Learned 12 Factory zone layouts 6317 | -6/Lower Caves | Build established: Gunner 6378 | -6/Lower Caves | Discovered new exit (range 12) 6400 | -6/Lower Caves | Entered Data Miner 6400 | -6/Data Miner | Discovered new exit (range 6) 6430 | -6/Data Miner | Met Data Miner 6459 | -6/Data Miner | Learned location of Section 7 (-2) 6459 | -6/Data Miner | Acquired the access code to Warlord's prototype stash 6484 | -6/Data Miner | Received God Mode back door access code from Data Miner 6520 | -6/Data Miner | Entered Proximity Caves 6675 | -5/Proximity Caves | Lost 3 parts (2n1u) 6723 | -5/Proximity Caves | Self-destructed Last Messages --------------- 06644_ Adv. Treads destroyed. 06648_ Lgt. Nuclear Core fries itself beyond repair. 06649_ S-27 Virus destroyed. 06652_ The unstable cave ceiling collapses. 06652_ S-27 Virus destroyed. 06653_ Autogun fries itself beyond repair. 06672_ Acquired 3 matter. 06673_ The unstable cave ceiling collapses. 06687_ Acquired 20 matter. 06693_ The unstable cave ceiling collapses. 06701_ Searching scrap... 06701_ Found Shield Generator. 06701_ Found 42 Matter. 06702_ Acquired 42 matter. 06703_ Prc. Assault Rifle destroyed. 06706_ Arm. Treads destroyed. 06712_ Magnetic Acceleration Cannon destroyed. 06713_ P-70 Sage knocked back. 06717_ P-70 Sage destroyed. Map ----- +----------------------------------------------------+ | ?????????????????????????????????????????????????? | | ?????????????????????????????????????????????????? | | ?????????????????????????????????????????????????? | | ?????????????????????????????????????????????????? | | ?????????????????????????????????????????????????? | | ?????????????????????????????????????????????????? | | ?????????????????????????????????????????????????? | | ?????????????????????????????????????????????????? | | ?????????????????????????????????????????????????? | | ?????????????????????????????????????????????????? | | ?????????????????????????????????????????????????? | | ?????????????????????????????????????????????????? | | ?????????????????????????????????????????????????? | | ?????????????????????????????????????????????????? | | ?????????????????????????????????????????????????? | | ?????????????????????????????????????????????????? | | ?????????????????????????????????????????????????? | | ?????????????????????????????????????????????????? | | ?????????????????????????????????????????????????? | | ?????????????????????????????????????????????????? | | ?????????????????????????????????????????????????? | | ?????????????????????????????????????????????????? | | ?????????????????##?????###??????????????????????? | | ?????????????????# ???# ???????? ?????????????? | | ?????????????##### ?## #???????? ? ?#?????????? | | ?????????? #;@####???? # ??????????? | | ?????????? % !%% #??## ???????????? | | ???????????? ????# ##;%## #?# #???????????? | | ?????????? ??????## ??##;%##? ##???????????? | | ??????????????????#???# ##?# #???????????? | | ?????????????#????# ??##% #?? # #???????????? | | ???????? ?????????# #### ####? #????????????? | | ???????????????#??# p ## ## #????????????? | | ??????????????????# ## #????????????? | | ????????????#?????#### ### ##???????? | | ???#???????????????## # #???????? | | ????????????#??????# % #???????? | | ???????????????????# #???????? | | ?????##########???## ##???????? | | #??### #####% ## ##????????? | | ### ##%% ###### ## ??????? | | #### "%#????# #?#### #### #????? | | ##?## "" #????## ##?????? #?????????? | | ##?# %"###?????# #???????? #????????? | | ### ## ##??????? #??????????????????? | | ??## ## ##????#??? ###?????????????????? | | ?## ###### #?????#??# ##???????????????????? | | ## ##??#?# ##????????##?????????????????????? | | #????# ##????????????????????????????????? | | ##???? #??????????#?#?????????????????????? | +----------------------------------------------------+ Best States ------------- Heat Dissipation 51 Energy Generation 19 Energy Capacity 500 Matter Stores 300 Matter Capacity 300 Sight Range 18 Terrain Scan Range 16 Terrain Scan Density 10 Armor Coverage 225 Evasion (%) 50 Targeting Accuracy 6 Recoil Reduction 5 Authchip Count 1 Item Schematics ----------------- Combat Drone Bay | -6/Data Miner | Free Lgt. Regenerative Plating | -6/Data Miner | Free Cld. Nuclear Pulse Thruster | -6/Data Miner | Free Prc. Energy Filter | -6/Data Miner | Free Ionic Axe | -6/Data Miner | Free Imp. Heavy Treads | -6/Data Miner | Free Adv. Coolant Injector | -6/Data Miner | Free Hvy. Disruptor Cannon | -6/Data Miner | Free Imp. Focal Shield | -6/Data Miner | Free Antimatter Reactor | -6/Data Miner | Free Fusion Bomb Launcher | -6/Data Miner | Free Robot Schematics ------------------ D-63 Destroyer | -6/Data Miner | Free G-50 Soldier | -6/Data Miner | Free E-15 Imp | -6/Data Miner | Free S-27 Virus | -6/Data Miner | Free A-27 Freighter | -6/Data Miner | Free Fabricated ------------ Nothing Repaired ---------- Nothing Alien Tech Used ----------------- None Achievements -------------- None Challenges ------------ None Game ------ Seed BombardmentOmegaBrace Manual? 0 Play Time 00:45:35 Cumulative 104.7 hours Start 2025.08.06 @ 19:43:15 End 2025.08.06 @ 21:32:37 Sessions 3 Manual Loads 0 Difficulty Rogue Special Mode None Game No. 187 Rogue 187 Adventurer 0 Explorer 0 Win Type - Total 1 Types 1/0/0/0/0/0/0/0/0/0 Lore% 66 Gallery% 60 Achievement% 43 Wizard Run 0 Options --------- Layout 1 ASCII 0 Keyboard 0 Movement Mouse Keybinds 0 Fullscreen 1 Font 24/Smallcaps Map View 50x35 Zoom Use 0% Tactical HUD 1 Map Filters NONE Filters NONE Steam 1 RUN: 8cc466db-c504-4230-97c7-b4d928272bf1